fUST/lending_fUST_20250505
["ID","MTS","AMOUNT","RATE_DAILY","PERIOD"]
[359916771,1746419439015,-400.0,0.00035616,14]
[359916772,1746419439024,-400.0,0.00035616,14]
[359916773,1746419439033,-400.0,0.00035616,14]
[359916774,1746419439043,-267.67869078,0.00035616,14]
[359916775,1746419439053,-400.0,0.00035616,14]
[359916776,1746419439065,-400.0,0.00035616,14]
[359916777,1746419439075,-400.0,0.00035616,14]
[359916778,1746419439084,-400.0,0.00035616,14]
[359916779,1746419439094,-400.0,0.00035616,14]
[359916780,1746419439104,-400.0,0.00035616,14]
[359916781,1746419439114,-400.0,0.00035616,14]
[359916782,1746419439124,-400.0,0.00035616,14]
[359916783,1746419439134,-400.0,0.00035616,14]
[359916784,1746419439144,-261.98424676,0.00035616,14]
[359916785,1746419439155,-400.0,0.00035616,14]
[359916786,1746419439164,-208.28979321,0.00035616,14]
[359916787,1746419439174,-400.0,0.00035616,14]
[359916788,1746419439184,-400.0,0.00035616,14]
[359916789,1746419439194,-400.0,0.00035616,14]
[359916790,1746419439203,-400.0,0.00035616,14]
[359916791,1746419439213,-400.0,0.00035616,14]
[359916792,1746419439222,-286.1601462,0.00035616,14]
[359916793,1746419439232,-400.0,0.00035616,14]
[359916794,1746419439242,-400.0,0.00035616,14]
[359916795,1746419439251,-400.0,0.00035616,14]
[359916796,1746419439261,-400.0,0.00035616,14]
[359916797,1746419439271,-400.0,0.00035616,14]
[359916798,1746419439280,-412.20575067,0.00035616,14]
[359916799,1746419439290,-400.0,0.00035616,14]
[359916800,1746419439299,-400.0,0.00035616,14]
[359916801,1746419439309,-405.35599822,0.00035616,14]
[359916802,1746419439319,-400.0,0.00035616,14]
[359916803,1746419439329,-400.0,0.00035616,14]
[359916804,1746419439338,-500.0,0.00035616,14]
[359916805,1746419439348,-400.0,0.00035616,14]
[359916806,1746419439358,-400.0,0.00035616,14]
[359916807,1746419439367,-400.0,0.00035616,14]
[359916808,1746419439377,-400.0,0.00035616,14]
[359916809,1746419439387,-400.0,0.00035616,14]
[359916810,1746419439397,-400.0,0.00035616,14]
[359916811,1746419439406,-476.63,0.00035616,14]
[359916812,1746419439416,-400.0,0.00035616,14]
[359916813,1746419439425,-408.06239981,0.00035616,14]
[359916814,1746419439435,-400.0,0.00035616,14]
[359916815,1746419439445,-400.0,0.00035616,14]
[359916816,1746419439455,-401.55,0.00035616,14]
[359916817,1746419439465,-400.0,0.00035616,14]
[359916818,1746419439474,-400.0,0.00035616,14]
[359916819,1746419439484,-400.0,0.00035616,14]
[359916820,1746419439493,-400.0,0.00035616,14]
[359916821,1746419439503,-400.0,0.00035616,14]
[359916822,1746419439513,-400.0,0.00035616,14]
[359916823,1746419439523,-400.0,0.00035616,14]
[359916824,1746419439533,-400.0,0.00035616,14]
[359916825,1746419439543,-400.0,0.00035616,14]
[359916826,1746419439553,-400.0,0.00035616,14]
[359916827,1746419439563,-400.0,0.00035616,14]
[359916828,1746419439573,-400.0,0.00035616,14]
[359916829,1746419439583,-400.0,0.00035616,14]
[359916830,1746419439593,-400.0,0.00035616,14]
[359916831,1746419439603,-400.0,0.00035616,14]
[359916832,1746419439613,-400.0,0.00035616,14]
[359916833,1746419439623,-400.0,0.00035616,14]
[359916834,1746419439633,-400.0,0.00035616,14]
[359916835,1746419439644,-400.0,0.00035616,14]
[359916836,1746419439654,-400.0,0.00035616,2]
[359916837,1746419439664,-400.0,0.00035616,2]
[359916838,1746419439674,-482.54,0.00035616,14]
[359916839,1746419439684,-400.0,0.00035616,14]
[359916840,1746419439694,-400.0,0.00035616,14]
[359916841,1746419439704,-400.0,0.00035616,14]
[359916842,1746419439714,-400.0,0.00035616,14]
[359916843,1746419439724,-400.0,0.00035616,14]
[359916844,1746419439734,-400.0,0.00035616,14]
[359916845,1746419439743,-400.0,0.00035616,14]
[359916846,1746419439754,-400.0,0.00035616,14]
[359916847,1746419439764,-495.66,0.00035616,14]
[359916848,1746419439774,-400.0,0.00035616,14]
[359916849,1746419439785,-400.0,0.00035616,14]
[359916850,1746419439795,-400.0,0.00035616,14]
[359916851,1746419439806,-400.0,0.00035616,14]
[359916852,1746419439816,-528.3539873,0.00035616,14]
[359916853,1746419439826,-400.0,0.00035616,14]
[359916854,1746419439836,-400.0,0.00035616,14]
[359916855,1746419439846,-400.0,0.00035616,14]
[359916856,1746419439855,-400.0,0.00035616,14]
[359916857,1746419439865,-400.0,0.00035616,14]
[359916858,1746419439874,-400.0,0.00035616,14]
[359916860,1746419439884,-400.0,0.00035616,14]
[359916862,1746419439893,-400.0,0.00035616,14]
[359916863,1746419439903,-400.0,0.00035616,14]
[359916864,1746419439913,-400.0,0.00035616,14]
[359916865,1746419439923,-400.0,0.00035616,14]
[359916866,1746419439934,-400.0,0.00035616,14]
[359916867,1746419439944,-410.22154841,0.00035616,14]
[359916868,1746419439954,-400.0,0.00035616,14]
[359916869,1746419439964,-400.0,0.00035616,14]
[359916870,1746419439974,-500.0,0.00035616,14]
[359916871,1746419439985,-500.0,0.00035616,14]
[359916872,1746419439994,-500.0,0.00035616,14]
[359916873,1746419440004,-400.0,0.00035616,14]
[359916874,1746419440014,-503.42947513,0.00035616,14]
[359916875,1746419440024,-400.0,0.00035616,14]
[359916876,1746419440034,-400.0,0.00035616,14]
[359916877,1746419440044,-500.0,0.00035889,14]
[359916878,1746419440054,-281.62774334,0.0003589,14]
[359916880,1746419440068,-400.0,0.0003589,14]
[359916881,1746419440077,-400.0,0.0003589,14]
[359916882,1746419440087,-400.0,0.0003589,14]
[359916883,1746419440096,-400.0,0.0003589,14]
[359916884,1746419440107,-400.0,0.0003589,14]
[359916885,1746419440117,-400.0,0.0003589,14]
[359916886,1746419440126,-188.42,0.0003589,14]
[359916887,1746419440137,-436.91,0.0003589,14]
[359916888,1746419440147,-244.82,0.0003589,14]
[359916889,1746419440158,-400.0,0.0003589,14]
[359916890,1746419440167,-400.0,0.0003589,14]
[359916891,1746419440177,-400.0,0.0003589,14]
[359916892,1746419440188,-400.0,0.0003589,14]
[359916893,1746419440197,-400.0,0.0003589,14]
[359916894,1746419440207,-400.0,0.0003589,14]
[359916895,1746419440217,-400.0,0.0003589,14]
[359916896,1746419440227,-400.0,0.0003589,14]
[359916911,1746419440359,-525.14,0.0003589,14]
[359916913,1746419440370,-400.0,0.0003589,14]
[359916915,1746419440380,-400.0,0.0003589,14]
[359916917,1746419440390,-359.37,0.0003589,14]
[359916919,1746419440400,-400.0,0.0003589,14]
[359916921,1746419440409,-400.0,0.0003589,14]
[359916924,1746419440419,-459.58,0.0003589,14]
[359916925,1746419440428,-400.0,0.0003589,14]
[359916927,1746419440438,-170.56,0.0003589,14]
[359916930,1746419440449,-400.0,0.0003589,14]
[359916931,1746419440459,-400.0,0.0003589,14]
[359916934,1746419440469,-400.0,0.0003589,14]
[359916936,1746419440480,-400.0,0.0003589,14]
[359916938,1746419440490,-400.0,0.0003589,14]
[359916940,1746419440500,-365.85527944,0.0003589,14]
[359916941,1746419440510,-169.13,0.0003589,14]
[359916944,1746419440520,-400.0,0.0003589,14]
[359916945,1746419440529,-298.1,0.0003589,14]
[359916947,1746419440539,-400.0,0.0003589,14]
[359916950,1746419440549,-400.0,0.0003589,14]
[359916952,1746419440559,-400.0,0.0003589,14]
[359916954,1746419440569,-313.84,0.0003589,14]
[359916957,1746419440579,-400.0,0.0003589,14]
[359916959,1746419440589,-400.0,0.0003589,14]
[359916961,1746419440598,-400.0,0.0003589,14]
[359916963,1746419440608,-400.0,0.0003589,14]
[359916965,1746419440619,-400.0,0.0003589,14]
[359916967,1746419440630,-400.0,0.0003589,14]
[359916969,1746419440641,-323.47,0.0003589,14]
[359916971,1746419440651,-424.23,0.0003589,14]
[359916973,1746419440661,-400.0,0.0003589,14]
[359916975,1746419440671,-255.47,0.0003589,14]
[359916977,1746419440681,-400.0,0.0003589,14]
[359916979,1746419440691,-400.0,0.0003589,14]
[359916981,1746419440700,-400.0,0.0003589,14]
[359916983,1746419440710,-400.0,0.0003589,14]
[359916985,1746419440720,-400.0,0.0003589,2]
[359916987,1746419440729,-400.0,0.0003589,2]
[359916989,1746419440739,-366.72,0.0003589,14]
[359916991,1746419440748,-400.0,0.0003589,14]
[359916993,1746419440758,-400.0,0.0003589,14]
[359916994,1746419440767,-400.0,0.0003589,14]
[359916996,1746419440777,-400.0,0.0003589,14]
[359916999,1746419440787,-400.0,0.0003589,14]
[359917001,1746419440797,-400.0,0.0003589,14]
[359917003,1746419440807,-400.0,0.0003589,14]
[359917005,1746419440817,-400.0,0.0003589,14]
[359917007,1746419440828,-400.0,0.0003589,14]
[359917009,1746419440839,-400.0,0.0003589,14]
[359917011,1746419440850,-400.0,0.0003589,14]
[359917013,1746419440859,-400.0,0.0003589,14]
[359917015,1746419440868,-400.0,0.0003589,14]
[359917017,1746419440878,-400.0,0.0003589,14]
[359917019,1746419440887,-400.0,0.0003589,14]
[359917021,1746419440896,-400.0,0.0003589,14]
[359917023,1746419440906,-400.0,0.0003589,14]
[359917025,1746419440915,-400.0,0.0003589,14]
[359917027,1746419440925,-400.0,0.0003589,14]
[359917029,1746419440935,-400.0,0.0003589,14]
[359917031,1746419440944,-219.87,0.0003589,14]
[359917033,1746419440953,-400.0,0.0003589,14]
[359917035,1746419440962,-400.0,0.0003589,14]
[359917037,1746419440971,-403.50936461,0.000359,33]
[359917039,1746419440981,-403.50936459,0.00036072,34]
[359917041,1746419440990,-165.04194618,0.00036154,3]
[359917043,1746419440999,-500.0,0.00036163,14]
[359917045,1746419441009,-305.49772878,0.00036164,14]
[359917046,1746419441018,-400.0,0.00036164,14]
[359917048,1746419441027,-400.0,0.00036164,14]
[359917050,1746419441037,-400.0,0.00036164,14]
[359917052,1746419441046,-400.0,0.00036164,14]
[359917054,1746419441056,-400.0,0.00036164,14]
[359917056,1746419441069,-400.0,0.00036164,14]
[359917058,1746419441079,-400.0,0.00036164,14]
[359917060,1746419441088,-400.0,0.00036164,14]
[359917062,1746419441099,-400.0,0.00036164,14]
[359917065,1746419441108,-400.0,0.00036164,14]
[359917067,1746419441117,-400.0,0.00036164,14]
[359917069,1746419441127,-532.42,0.00036164,14]
[359917070,1746419441137,-372.38,0.00036164,14]
[359917073,1746419441147,-469.0,0.00036164,14]
[359917075,1746419441156,-400.0,0.00036164,14]
[359917078,1746419441174,-545.54,0.00036164,14]
[359917080,1746419441185,-400.0,0.00036164,14]
[359917082,1746419441195,-280.25,0.00036164,14]
[359917084,1746419441205,-400.0,0.00036164,14]
[359917086,1746419441215,-400.0,0.00036164,14]
[359917088,1746419441224,-400.0,0.00036164,14]
[359917090,1746419441234,-400.0,0.00036164,14]
[359917092,1746419441245,-400.0,0.00036164,14]
[359917094,1746419441255,-400.0,0.00036164,14]
[359917096,1746419441266,-400.0,0.00036164,14]
[359917098,1746419441276,-400.0,0.00036164,14]
[359917100,1746419441285,-425.02,0.00036164,14]
[359917102,1746419441295,-400.0,0.00036164,14]
[359917103,1746419441304,-400.0,0.00036164,14]
[359917104,1746419441314,-400.0,0.00036164,14]
[359917105,1746419441323,-494.16,0.00036164,14]
[359917106,1746419441332,-400.0,0.00036164,14]
[359917107,1746419441341,-400.0,0.00036164,14]
[359917108,1746419441350,-539.59,0.00036164,14]
[359917109,1746419441360,-400.0,0.00036164,2]
[359917110,1746419441369,-400.0,0.00036164,2]
[359917111,1746419441378,-400.0,0.00036164,14]
[359917112,1746419441388,-400.0,0.00036164,14]
[359917113,1746419441397,-400.0,0.00036164,14]
[359917114,1746419441406,-400.0,0.00036164,14]
[359917115,1746419441416,-400.0,0.00036164,14]
[359917116,1746419441425,-300.0,0.00036164,14]
[359917117,1746419441435,-396.87,0.00036164,14]
[359917118,1746419441445,-400.0,0.00036164,14]
[359917119,1746419441455,-197.96,0.00036164,14]
[359917120,1746419441465,-370.94,0.00036164,14]
[359917121,1746419441475,-400.0,0.00036164,14]
[359917122,1746419441484,-301.96,0.00036164,14]
[359917123,1746419441494,-400.0,0.00036164,14]
[359917124,1746419441504,-400.0,0.00036164,14]
[359917125,1746419441514,-520.0,0.00036164,14]
[359917126,1746419441524,-400.0,0.00036164,14]
[359917127,1746419441534,-400.0,0.00036164,14]
[359917128,1746419441544,-400.0,0.00036164,14]
[359917129,1746419441553,-154.29437002,0.00036164,14]
[359917130,1746419441563,-513.93,0.00036164,14]
[359917131,1746419441572,-371.46051376,0.00036164,14]
[359917132,1746419441581,-970.31,0.000362,7]
[359917133,1746419441591,-500.0,0.00036226,5]
[359917134,1746419441600,-500.0,0.00036226,5]
[359917135,1746419441609,-500.0,0.00036226,2]
[359917136,1746419441619,-500.0,0.00036231,5]
[359917137,1746419441628,-500.0,0.00036231,5]
[359917138,1746419441638,-500.0,0.00036237,5]
[359917139,1746419441647,-500.7458131,0.00036242,5]
[359917140,1746419441657,-403.50936459,0.00036245,34]
[359917141,1746419441666,-500.0,0.00036259,5]
[359917142,1746419441675,-500.0,0.00036259,5]
[359917143,1746419441684,-504.01052961,0.00036263,5]
[359917144,1746419441693,-500.0,0.00036275,5]
[359917145,1746419441703,-501.54870386,0.00036311,5]
[359917146,1746419441712,-501.52419367,0.00036352,5]
[359917147,1746419441721,-500.0,0.00036352,2]
[359917148,1746419441730,-151.69219269,0.00036367,5]
[359917149,1746419441740,-500.0,0.00036381,5]
[359917150,1746419441750,-403.50936459,0.00036417,34]
[359917151,1746419441759,-400.0,0.00036437,14]
[359917152,1746419441768,-500.0,0.00036438,14]
[359917153,1746419441777,-300.0,0.00036438,14]
[359917154,1746419441786,-300.0,0.00036438,14]
[359917155,1746419441796,-400.0,0.00036438,14]
[359917156,1746419441805,-400.0,0.00036438,14]
[359917157,1746419441815,-509.62,0.00036438,14]
[359917158,1746419441824,-400.0,0.00036438,14]
[359917159,1746419441834,-400.0,0.00036438,14]
[359917160,1746419441844,-400.0,0.00036438,14]
[359917161,1746419441854,-541.38,0.00036438,14]
[359917162,1746419441863,-400.0,0.00036438,14]
[359917163,1746419441873,-269.23358485,0.00036438,14]
[359917164,1746419441883,-276.9,0.00036438,14]
[359917165,1746419441892,-400.0,0.00036438,14]
[359917166,1746419441902,-400.0,0.00036438,14]
[359917167,1746419441912,-400.0,0.00036438,14]
[359917168,1746419441922,-400.0,0.00036438,14]
[359917169,1746419441932,-400.0,0.00036438,14]
[359917170,1746419441942,-212.75,0.00036438,14]
[359917171,1746419441952,-400.0,0.00036438,14]
[359917172,1746419441961,-400.0,0.00036438,14]
[359917173,1746419441970,-400.0,0.00036438,14]
[359917174,1746419441980,-306.80701146,0.00036438,14]
[359917175,1746419441991,-400.0,0.00036438,14]
[359917176,1746419442000,-316.92,0.00036438,14]
[359917177,1746419442010,-400.0,0.00036438,14]
[359917178,1746419442019,-464.48416512,0.00036438,2]
[359917179,1746419442030,-400.0,0.00036438,2]
[359917180,1746419442039,-400.0,0.00036438,14]
[359917181,1746419442049,-400.0,0.00036438,14]
[359917182,1746419442061,-400.0,0.00036438,14]
[359917183,1746419442072,-400.0,0.00036438,14]
[359917184,1746419442082,-400.0,0.00036438,14]
[359917185,1746419442091,-400.0,0.00036438,14]
[359917186,1746419442101,-400.0,0.00036438,14]
[359917187,1746419442111,-400.0,0.00036438,14]
[359917188,1746419442121,-400.0,0.00036438,14]
[359917189,1746419442131,-400.0,0.00036438,14]
[359917190,1746419442142,-400.0,0.00036438,14]
[359917191,1746419442151,-400.0,0.00036438,14]
[359917192,1746419442161,-403.50936459,0.0003659,35]
[359917193,1746419442171,-165.04194618,0.00036702,3]
[359917194,1746419442180,-400.0,0.00036711,14]
[359917195,1746419442190,-500.0,0.00036711,14]
[359917196,1746419442200,-400.0,0.00036712,14]
[359917197,1746419442210,-400.0,0.00036712,14]
[359917198,1746419442219,-400.0,0.00036712,14]
[359917199,1746419442232,-400.0,0.00036712,14]
[359917200,1746419442242,-400.0,0.00036712,14]
[359917201,1746419442252,-400.0,0.00036712,14]
[359917202,1746419442261,-400.0,0.00036712,14]
[359917203,1746419442271,-387.08244284,0.00036712,14]
[359917204,1746419442281,-542.66,0.00036712,14]
[359917205,1746419442290,-400.0,0.00036712,14]
[359917206,1746419442300,-157.31,0.00036712,14]
[359917207,1746419442310,-400.0,0.00036712,14]
[359917208,1746419442319,-400.0,0.00036712,14]
[359917209,1746419442329,-400.0,0.00036712,14]
[359917210,1746419442339,-400.0,0.00036712,14]
[359917211,1746419442350,-400.0,0.00036712,14]
[359917212,1746419442359,-400.0,0.00036712,2]
[359917213,1746419442368,-263.25520372,0.00036712,2]
[359917214,1746419442378,-400.0,0.00036712,14]
[359917215,1746419442388,-400.0,0.00036712,14]
[359917216,1746419442398,-400.0,0.00036712,14]
[359917217,1746419442408,-400.0,0.00036712,14]
[359917218,1746419442418,-400.0,0.00036712,14]
[359917219,1746419442428,-359.86,0.00036712,14]
[359917220,1746419442438,-400.0,0.00036712,14]
[359917221,1746419442448,-396.27,0.00036712,14]
[359917222,1746419442457,-400.0,0.00036712,14]
[359917223,1746419442467,-153.84,0.00036712,14]
[359917224,1746419442477,-229.79,0.00036712,14]
[359917225,1746419442486,-400.0,0.00036712,14]
[359917226,1746419442496,-403.50936459,0.00036762,35]
[359917227,1746419442506,-403.50936459,0.00036934,35]
[359917228,1746419442515,-400.0,0.00036985,14]
[359917229,1746419442526,-400.0,0.00036986,14]
[359917230,1746419442536,-400.0,0.00036986,14]
[359917231,1746419442546,-400.0,0.00036986,14]
[359917232,1746419442555,-400.0,0.00036986,14]
[359917233,1746419442565,-400.0,0.00036986,14]
[359917234,1746419442575,-400.0,0.00036986,14]
[359917235,1746419442585,-462.92,0.00036986,14]
[359917236,1746419442594,-400.0,0.00036986,14]
[359917237,1746419442604,-325.72,0.00036986,14]
[359917238,1746419442613,-400.0,0.00036986,14]
[359917239,1746419442623,-400.0,0.00036986,14]
[359917240,1746419442632,-400.0,0.00036986,14]
[359917241,1746419442642,-400.0,0.00036986,14]
[359917242,1746419442652,-400.0,0.00036986,2]
[359917243,1746419442661,-400.0,0.00036986,14]
[359917244,1746419442670,-400.0,0.00036986,14]
[359917245,1746419442680,-400.0,0.00036986,14]
[359917246,1746419442689,-400.0,0.00036986,14]
[359917247,1746419442699,-400.0,0.00036986,14]
[359917248,1746419442710,-441.91,0.00036986,14]
[359917249,1746419442720,-400.0,0.00036986,14]
[359917250,1746419442730,-298.9,0.00036986,14]
[359917251,1746419442740,-403.50936459,0.00037107,36]
[359917252,1746419442750,-400.0,0.00037259,14]
[359917253,1746419442759,-400.0,0.0003726,14]
[359917254,1746419442769,-400.0,0.0003726,14]
[359917255,1746419442779,-400.0,0.0003726,14]
[359917256,1746419442789,-400.0,0.0003726,14]
[359917258,1746419442799,-400.0,0.0003726,14]
[359917259,1746419442809,-400.0,0.0003726,14]
[359917260,1746419442819,-400.0,0.0003726,14]
[359917261,1746419442828,-400.0,0.0003726,14]
[359917262,1746419442839,-400.0,0.0003726,14]
[359917264,1746419442849,-231.52,0.0003726,14]
[359917265,1746419442858,-471.03689765,0.0003726,14]
[359917266,1746419442868,-400.0,0.0003726,2]
[359917267,1746419442878,-400.0,0.0003726,14]
[359917268,1746419442888,-400.0,0.0003726,14]
[359917269,1746419442898,-400.22367334,0.0003726,14]
[359917270,1746419442908,-400.0,0.0003726,14]
[359917271,1746419442918,-400.0,0.0003726,14]
[359917272,1746419442927,-400.0,0.0003726,14]
[359917273,1746419442938,-403.50936459,0.00037279,36]
[359917274,1746419442949,-403.50936459,0.00037452,36]
[359917275,1746419442959,-400.0,0.00037533,14]
[359917276,1746419442968,-400.0,0.00037534,14]
[359917277,1746419442978,-400.0,0.00037534,14]
[359917278,1746419442987,-400.0,0.00037534,14]
[359917279,1746419442998,-400.0,0.00037534,14]
[359917280,1746419443007,-400.0,0.00037534,14]
[359917282,1746419443017,-400.0,0.00037534,14]
[359917284,1746419443026,-400.0,0.00037534,14]
[359917285,1746419443036,-400.0,0.00037534,14]
[359917287,1746419443046,-302.36,0.00037534,14]
[359917289,1746419443055,-400.0,0.00037534,2]
[359917291,1746419443068,-320.39741223,0.00037534,14]
[359917292,1746419443078,-400.0,0.00037534,14]
[359917293,1746419443087,-400.0,0.00037534,14]
[359917294,1746419443098,-400.0,0.00037534,14]
[359917295,1746419443108,-400.0,0.00037534,14]
[359917296,1746419443118,-403.50936459,0.00037624,37]
[359917297,1746419443129,-403.50936459,0.00037797,37]
[359917298,1746419443141,-400.0,0.00037807,14]
[359917299,1746419443151,-400.0,0.00037808,14]
[359917300,1746419443160,-338.52,0.00037808,14]
[359917301,1746419443169,-400.0,0.00037808,14]
[359917303,1746419443178,-400.0,0.00037808,14]
[359917304,1746419443188,-400.0,0.00037808,14]
[359917305,1746419443198,-342.51622325,0.00037808,14]
[359917306,1746419443208,-400.0,0.00037808,14]
[359917307,1746419443217,-400.0,0.00037808,14]
[359917308,1746419443227,-400.0,0.00037808,2]
[359917309,1746419443237,-400.0,0.00037808,14]
[359917310,1746419443247,-400.0,0.00037808,14]
[359917311,1746419443257,-400.0,0.00037808,14]
[359917312,1746419443266,-303.08,0.00037808,14]
[359917313,1746419443276,-403.50936459,0.00037969,37]
[359917314,1746419443286,-340.0,0.00038,2]
[359917315,1746419443296,-400.0,0.00038081,14]
[359917316,1746419443306,-400.0,0.00038082,14]
[359917317,1746419443316,-197.04,0.00038082,14]
[359917318,1746419443325,-400.0,0.00038082,14]
[359917319,1746419443335,-400.0,0.00038082,14]
[359917320,1746419443345,-400.0,0.00038082,14]
[359917321,1746419443355,-400.0,0.00038082,14]
[359917322,1746419443485,-400.0,0.00038082,2]
[359917323,1746419443495,-400.0,0.00038082,14]
[359917324,1746419443506,-400.0,0.00038082,14]
[359917325,1746419443515,-400.0,0.00038082,14]
[359917326,1746419443524,-403.50936459,0.00038141,38]
[359917327,1746419443535,-403.50936459,0.00038314,38]
[359917328,1746419443545,-400.0,0.00038355,14]
[359917329,1746419443556,-156.3405842,0.00038356,14]
[359917330,1746419443567,-400.0,0.00038356,14]
[359917331,1746419443577,-400.0,0.00038356,14]
[359917332,1746419443586,-400.0,0.00038356,14]
[359917333,1746419443596,-400.0,0.00038356,14]
[359917334,1746419443606,-400.0,0.00038356,2]
[359917335,1746419443615,-400.0,0.00038356,14]
[359917336,1746419443625,-400.0,0.00038356,14]
[359917337,1746419443634,-394.5,0.00038356,14]
[359917338,1746419443643,-1001.29243734,0.00038392,15]
[359917339,1746419443653,-922.5549026,0.00038403,4]
[359917340,1746419443664,-403.50936459,0.00038486,38]
[359917341,1746419443674,-970.31,0.000385,7]
[359917342,1746419443684,-400.0,0.00038629,14]
[359917343,1746419443696,-400.0,0.0003863,14]
[359917344,1746419443705,-400.0,0.0003863,14]
[359917345,1746419443714,-400.0,0.0003863,14]
[359917346,1746419443723,-400.0,0.0003863,14]
[359917347,1746419443734,-400.0,0.0003863,2]
[359917348,1746419443743,-400.0,0.0003863,14]
[359917349,1746419443754,-400.0,0.0003863,14]
[359917350,1746419443764,-403.50936459,0.00038659,39]
[359917351,1746419443773,-1001.73480811,0.0003878,2]
[359917352,1746419443783,-403.50936459,0.00038831,39]
[359917353,1746419443792,-491.84,0.000389,2]
[359917354,1746419443802,-400.0,0.00038903,14]
[359917355,1746419443811,-400.0,0.00038904,14]
[359917356,1746419443820,-400.0,0.00038904,14]
[359917357,1746419443829,-400.0,0.00038904,14]
[359917358,1746419443839,-400.0,0.00038904,14]
[359917359,1746419443848,-400.0,0.00038904,2]
[359917360,1746419443858,-400.0,0.00038904,14]
[359917361,1746419443867,-371.91,0.00038904,14]
[359917362,1746419443877,-165.04194618,0.00038923,3]
[359917363,1746419443886,-299.814693,0.00038933,2]
[359917364,1746419443896,-403.50936459,0.00039003,39]
[359917365,1746419443906,-403.50936459,0.00039176,40]
[359917366,1746419443915,-400.0,0.00039177,14]
[359917367,1746419443924,-400.0,0.00039178,14]
[359917368,1746419443933,-400.0,0.00039178,14]
[359917369,1746419443943,-400.0,0.00039178,14]
[359917370,1746419443953,-400.0,0.00039178,14]
[359917371,1746419443962,-400.0,0.00039178,2]
[359917372,1746419443972,-400.0,0.00039178,14]
[359917373,1746419443981,-403.50936459,0.00039348,40]
[359917374,1746419443991,-400.0,0.00039451,14]
[359917375,1746419444002,-400.0,0.00039452,14]
[359917376,1746419444011,-400.0,0.00039452,14]
[359917377,1746419444020,-400.0,0.00039452,14]
[359917378,1746419444030,-400.0,0.00039452,14]
[359917379,1746419444040,-400.0,0.00039452,2]
[359917380,1746419444049,-400.0,0.00039452,14]
[359917381,1746419444063,-403.50936459,0.00039521,40]
[359917382,1746419444072,-403.50936459,0.00039693,41]
[359917383,1746419444082,-792.966,0.00039711,7]
[359917384,1746419444091,-200.88,0.00039725,14]
[359917385,1746419444101,-400.0,0.00039726,14]
[359917386,1746419444111,-400.0,0.00039726,14]
[359917387,1746419444120,-393.17717688,0.00039726,14]
[359917388,1746419444129,-400.0,0.00039726,14]
[359917389,1746419444139,-400.0,0.00039726,2]
[359917390,1746419444148,-400.0,0.00039726,14]
[359917391,1746419444157,-403.50936459,0.00039866,41]
[359917392,1746419444166,-500.0,0.0003998,2]